bitfinex/quotes_SOLUSD_20240530
["timestamp","ask_amount","ask_price","bid_price","bid_amount"]
[1717071693287,6.91,167.11,167.1,60.0]
[1717071693487,6.91,167.11,167.08,95.96]
[1717071693786,6.91,167.1,167.08,95.96]
[1717071694094,6.91,167.11,167.08,95.96]
[1717071694306,6.91,167.11,167.08,98.1744]
[1717071694605,6.91,167.11,167.1,60.0]
[1717071696305,6.91,167.11,167.08,53.97]
[1717071696306,6.91,167.11,167.08,95.96]
[1717071697197,6.91,167.1,167.08,95.96]
[1717071698118,6.91,167.11,167.08,98.1745]
[1717071698508,6.91,167.11,167.08,95.96]
[1717071699322,6.91,167.12,167.08,98.1744]
[1717071699800,6.91,167.12,167.08,95.96]
[1717071700409,6.91,167.12,167.11,60.0]
[1717071700715,6.91,167.13,167.11,60.0]
[1717071701700,6.0031,167.18,167.11,60.0]
[1717071702023,6.91,167.13,167.11,60.0]
[1717071702197,6.0031,167.18,167.09,98.1743]
[1717071702397,6.91,167.12,167.09,98.1743]
[1717071703817,6.91,167.12,167.1,2.2142]
[1717071704320,6.91,167.13,167.1,2.2142]
[1717071704708,6.0031,167.18,167.1,2.2142]
[1717071704913,6.91,167.13,167.11,60.0]
[1717071705421,6.0031,167.18,167.11,60.0]
[1717071705626,6.91,167.14,167.11,60.0]
[1717071706321,6.91,167.15,167.11,60.0]
[1717071706528,6.91,167.15,167.11,62.214]
[1717071706754,6.91,167.14,167.11,62.214]
[1717071707027,24.747407,167.19,167.15,60.0]
[1717071707237,6.91,167.17,167.15,60.0]
[1717071707430,24.747407,167.19,167.15,60.0]
[1717071711398,24.747407,167.19,167.17,60.0]
[1717071711618,31.657407,167.19,167.15,95.96]
[1717071711809,24.747407,167.19,167.15,95.96]
[1717071713109,6.91,167.18,167.15,95.96]
[1717071713308,24.747407,167.19,167.15,95.96]
[1717071714126,24.747407,167.19,167.13,98.1738]
[1717071714329,24.747407,167.19,167.15,60.0]
[1717071715132,24.747407,167.19,167.15,95.96]
[1717071716524,24.747407,167.19,167.15,35.96]
[1717071717235,6.91,167.18,167.15,35.96]
[1717071717535,6.91,167.17,167.15,35.96]
[1717071718119,24.747407,167.19,167.15,35.96]
[1717071718319,6.91,167.17,167.16,60.0]
[1717071718525,6.91,167.17,167.15,35.96]
[1717071719220,6.91,167.17,167.16,60.0]
[1717071719635,6.91,167.17,167.15,35.96]
[1717071721536,24.747407,167.19,167.14,2.2136]
[1717071722541,24.747407,167.19,167.13,2.2138]
[1717071723317,24.747407,167.19,167.13,38.1738]
[1717071724343,24.747407,167.19,167.14,62.2136]
[1717071724642,6.91,167.16,167.14,62.2136]
[1717071724840,24.747407,167.19,167.14,98.1736]
[1717071725015,24.747407,167.19,167.15,2.2135]
[1717071725016,6.91,167.18,167.15,2.2135]
[1717071725216,24.747407,167.19,167.16,60.0]
[1717071725421,24.747407,167.19,167.16,62.2134]
[1717071725644,24.747407,167.19,167.16,95.96]
[1717071727320,24.747407,167.19,167.18,60.0]
[1717071728152,24.747407,167.19,167.16,98.1734]
[1717071729156,24.747407,167.19,167.16,95.96]
[1717071729353,24.747407,167.19,167.16,98.1734]
[1717071729842,31.657407,167.19,167.16,98.1734]
[1717071730047,31.657407,167.19,167.16,95.96]
[1717071731153,31.657407,167.19,167.18,60.0]
[1717071731539,31.657407,167.19,167.16,95.96]
[1717071732144,6.91,167.18,167.16,95.96]
[1717071732334,31.657407,167.19,167.16,98.1734]
[1717071732535,24.747407,167.19,167.18,60.0]
[1717071732735,24.747407,167.19,167.18,95.96]
[1717071734054,24.747407,167.19,167.18,116.1831]
[1717071734258,24.747407,167.19,167.18,133.6132]
[1717071734636,24.747407,167.19,167.18,149.6906]
[1717071736153,24.747407,167.19,167.18,165.1828]
[1717071737263,16.74694586,167.19,167.18,553.8828]
[1717071738533,13.76694586,167.19,167.18,553.8828]
[1717071739134,6.43794586,167.19,167.18,553.8828]
[1717071739555,6.43794586,167.19,167.18,573.8828]
[1717071740358,4.64106993,167.19,167.18,573.8828]
[1717071740739,4.64106993,167.19,167.18,580.7928]
[1717071740946,2.844194,167.19,167.18,573.8828]
[1717071741256,0.844194,167.19,167.18,573.8828]
[1717071745669,0.844194,167.19,167.18,550.8954]
[1717071745867,0.844194,167.19,167.18,557.8054]
[1717071747073,0.844194,167.19,167.18,530.8954]
[1717071747261,0.844194,167.19,167.18,531.7116]
[1717071748169,0.844194,167.19,167.18,120.6094]
[1717071748361,0.844194,167.19,167.18,116.1831]
[1717071749048,0.844194,167.19,167.18,127.5194]
[1717071749266,0.844194,167.19,167.18,143.0116]
[1717071749448,0.844194,167.19,167.18,149.1137]
[1717071749645,0.844194,167.19,167.18,120.6094]
[1717071750254,0.844194,167.19,167.18,127.5194]
[1717071750456,0.844194,167.19,167.18,134.1589]
[1717071750657,0.844194,167.19,167.18,143.0116]
[1717071750860,0.844194,167.19,167.18,166.3189]
[1717071751573,9.4e-05,167.19,167.18,186.3189]
[1717071751759,9.4e-05,167.19,167.18,575.0189]
[1717071752159,0.8158164,167.24,167.23,127.245]
[1717071752473,0.8158164,167.24,167.23,134.155]
[1717071753172,0.8158164,167.24,167.23,127.245]
[1717071755567,0.8158164,167.24,167.23,136.095]
[1717071756277,0.8158164,167.24,167.23,143.005]
[1717071759469,2.2112,167.33,167.3,60.0]
[1717071759681,6.3672,167.32,167.3,60.0]
[1717071760088,6.3672,167.32,167.28,98.1717]
[1717071760311,2.2112,167.33,167.28,98.1717]
[1717071760464,6.4024,167.32,167.28,98.1717]
[1717071760664,6.4024,167.32,167.3,60.0]
[1717071760873,6.4024,167.33,167.3,60.0]
[1717071761161,16.1925,167.34,167.28,95.96]
[1717071761590,6.566,167.32,167.28,95.96]
[1717071761815,6.566,167.33,167.28,95.96]
[1717071762284,6.0314,167.33,167.28,95.96]
[1717071762595,16.1925,167.34,167.28,98.1718]
[1717071762797,6.0314,167.32,167.28,98.1718]
[1717071763161,6.204,167.31,167.27,38.1719]
[1717071763366,6.204,167.33,167.27,35.96]
[1717071763767,6.204,167.33,167.27,38.1719]
[1717071764194,6.204,167.33,167.27,35.96]
[1717071765893,6.204,167.33,167.28,60.0]
[1717071766092,6.2804,167.32,167.28,60.0]
[1717071766300,6.2804,167.31,167.28,60.0]
[1717071766799,6.2804,167.31,167.27,35.96]
[1717071767881,15.3331,167.38,167.27,35.96]
[1717071768074,15.3331,167.36,167.24,95.96]
[1717071768285,6.96402617,167.35,167.24,95.96]
[1717071768482,6.96402617,167.35,167.23,35.96]
[1717071769215,16.164,167.34,167.23,35.96]
[1717071769381,6.4413,167.33,167.23,35.96]
[1717071769994,6.4413,167.33,167.22,60.0]
[1717071770188,6.4413,167.33,167.2,35.96]
[1717071770189,6.91,167.23,167.2,98.1728]
[1717071770394,6.91,167.22,167.2,95.96]
[1717071771104,6.0051,167.27,167.22,60.0]
[1717071771276,6.107,167.31,167.25,60.0]
[1717071771474,6.91,167.27,167.25,60.0]
[1717071772290,6.91,167.26,167.25,60.0]
[1717071773180,6.107,167.31,167.25,60.0]
[1717071774184,6.91,167.26,167.25,60.0]
[1717071774384,6.107,167.31,167.25,60.0]
[1717071774585,6.107,167.31,167.25,95.96]
[1717071774814,6.91,167.26,167.25,95.96]
[1717071775502,6.107,167.31,167.28,60.0]
[1717071775690,6.91,167.29,167.28,60.0]
[1717071775890,6.91,167.29,167.26,95.96]
[1717071776100,6.91,167.27,167.26,95.96]
[1717071777114,6.107,167.31,167.28,60.0]
[1717071777411,6.91,167.29,167.28,60.0]
[1717071778107,6.2533,167.35,167.28,60.0]
[1717071778314,6.91,167.29,167.28,60.0]
[1717071778501,6.2533,167.35,167.28,60.0]
[1717071778502,6.2533,167.35,167.28,95.96]
[1717071778698,6.91,167.29,167.28,95.96]
[1717071779412,6.91,167.29,167.27,35.96]
[1717071779713,6.91,167.28,167.27,35.96]
[1717071782118,6.91,167.28,167.26,60.0]
[1717071782315,6.2533,167.35,167.24,95.96]
[1717071782714,6.2533,167.35,167.26,60.0]
[1717071782927,6.91,167.27,167.24,95.96]
[1717071783122,6.91,167.26,167.24,95.96]
[1717071784249,13.1511,167.28,167.21,424.66]
[1717071784392,6.91,167.22,167.21,388.7]
[1717071784589,6.91,167.22,167.2,60.0]
[1717071784793,6.91,167.21,167.2,60.0]
[1717071785292,6.91,167.21,167.2,62.2129]
[1717071785599,6.91,167.22,167.2,98.1728]
[1717071786222,6.91,167.23,167.22,60.0]
[1717071786904,6.91,167.23,167.2,98.1728]
[1717071787121,6.91,167.22,167.2,98.1728]
[1717071788307,6.91,167.22,167.2,62.2128]
[1717071788707,6.91,167.22,167.2,60.0]
[1717071789311,6.91,167.21,167.2,60.0]
[1717071789502,6.91,167.21,167.2,62.2129]
[1717071789905,6.91,167.22,167.2,62.2129]
[1717071791934,6.91,167.23,167.22,60.0]
[1717071792226,6.2411,167.28,167.22,60.0]
[1717071792435,6.91,167.23,167.22,60.0]
[1717071792624,13.1511,167.28,167.24,60.0]
[1717071792828,6.91,167.25,167.24,60.0]
[1717071793540,6.0027,167.33,167.24,60.0]
[1717071793717,6.0027,167.33,167.27,60.0]
[1717071793912,6.91,167.3,167.27,62.2119]
[1717071794110,6.91,167.29,167.27,62.2119]
[1717071794836,6.91,167.29,167.27,60.0]
[1717071795137,6.6367,167.37,167.29,60.0]
[1717071795436,6.6367,167.37,167.29,35.96]
[1717071795639,6.6367,167.37,167.28,60.0]
[1717071795943,6.6367,167.37,167.28,95.96]
[1717071796116,6.6367,167.37,167.26,62.212]
[1717071796804,6.6367,167.37,167.26,95.96]
[1717071797012,6.6367,167.37,167.21,22.3992]
[1717071797013,0.94942617,167.36,167.24,60.0]
[1717071797238,0.94942617,167.36,167.23,2.2124]
[1717071797415,0.94942617,167.36,167.24,60.0]
[1717071797622,7.58612617,167.37,167.24,62.2123]
[1717071797815,6.6367,167.37,167.24,98.1723]
[1717071798033,0.94942617,167.36,167.24,2.2123]
[1717071798335,0.94942617,167.36,167.23,2.2124]
[1717071798515,0.94942617,167.36,167.22,62.2126]
[1717071798941,0.94942617,167.36,167.22,60.0]
[1717071799124,6.91,167.23,167.22,60.0]
[1717071799630,6.91,167.23,167.21,38.1726]
[1717071799830,6.91,167.28,167.21,38.1726]
[1717071799831,6.91,167.22,167.21,38.1726]
[1717071800027,6.91,167.23,167.22,2.2126]
[1717071800424,6.91,167.23,167.21,38.1727]
[1717071801749,6.91,167.23,167.21,2.2127]
[1717071802240,6.91,167.23,167.22,60.0]
[1717071802449,6.91,167.23,167.21,2.2127]
[1717071802618,6.91,167.23,167.2,95.96]
[1717071802619,6.91,167.23,167.2,98.1728]
[1717071802948,6.91,167.22,167.2,98.1728]
[1717071803566,6.91,167.21,167.19,38.173]
[1717071803880,12.9277,167.28,167.19,38.173]
[1717071803881,6.91,167.2,167.19,38.173]
[1717071805363,12.9277,167.28,167.22,60.0]
[1717071805558,6.91,167.23,167.22,60.0]
[1717071806085,6.91,167.23,167.2,98.1729]
[1717071806456,6.91,167.22,167.2,95.96]
[1717071806655,6.0177,167.28,167.2,98.1729]
[1717071806871,6.91,167.22,167.2,98.1729]
[1717071807187,6.91,167.22,167.2,95.96]
[1717071807999,12.9277,167.28,167.19,35.96]
[1717071808203,6.91,167.2,167.19,35.96]
[1717071812591,6.91,167.2,167.19,38.173]
[1717071812903,12.9277,167.28,167.2,60.0]
[1717071813903,12.9277,167.28,167.19,35.96]
[1717071814275,12.9277,167.28,167.18,62.2131]
[1717071815192,12.9277,167.28,167.17,38.1733]
[1717071815500,12.9277,167.28,167.18,60.0]
[1717071815899,16.12452617,167.27,167.14,35.96]
[1717071816101,0.94942617,167.26,167.14,35.96]
[1717071816284,0.94942617,167.26,167.16,60.0]
[1717071816602,15.1751,167.27,167.16,60.0]
[1717071818384,15.1751,167.27,167.14,98.1736]
[1717071818805,15.1751,167.27,167.15,2.2135]
[1717071819106,15.1751,167.27,167.14,98.1736]
[1717071820017,15.1751,167.27,167.15,2.2135]
[1717071820720,15.1751,167.27,167.16,2.2134]
[1717071821018,15.1751,167.27,167.15,2.2135]
[1717071821508,0.94942617,167.26,167.14,2.2136]
[1717071821712,6.91,167.15,167.13,38.1737]
[1717071821905,6.91,167.15,167.13,35.96]
[1717071822200,6.91,167.14,167.12,60.0]
[1717071822398,6.91,167.13,167.11,2.214]
[1717071822605,6.91,167.12,167.1,98.1742]
[1717071822806,6.91,167.11,167.1,98.1742]
[1717071823405,6.91,167.11,167.1,95.96]
[1717071823790,6.91,167.11,167.09,2.2143]
[1717071824200,14.23732617,167.2,167.09,2.2143]
[1717071824398,6.91,167.13,167.09,2.2143]
[1717071824609,6.91,167.13,167.08,98.1744]
[1717071824804,6.91,167.13,167.08,95.96]
[1717071825107,6.91,167.13,167.1,2.2142]
[1717071825810,6.91,167.13,167.09,2.2143]
[1717071826709,6.91,167.13,167.1,2.2142]
[1717071826925,6.91,167.13,167.09,2.2142]
[1717071827103,6.3779,167.2,167.09,2.2142]
[1717071827303,6.91,167.13,167.09,2.2142]
[1717071828507,13.2879,167.2,167.11,60.0]
[1717071828817,14.23732617,167.2,167.09,98.1743]
[1717071829022,6.91,167.13,167.09,98.1743]
[1717071829209,13.2879,167.2,167.11,60.0]
[1717071829405,13.2879,167.2,167.1,2.2142]
[1717071829822,6.91,167.13,167.1,2.2142]
[1717071830497,6.91,167.13,167.09,2.2143]
[1717071831506,13.2879,167.2,167.1,2.2142]
[1717071831906,14.23732617,167.2,167.09,2.2143]
[1717071832229,14.23732617,167.2,167.08,2.2144]
[1717071832230,6.91,167.12,167.08,2.2144]
[1717071834226,6.91,167.12,167.07,38.1745]
[1717071835314,6.91,167.12,167.07,2.2145]
[1717071835517,14.23732617,167.2,167.08,2.2144]
[1717071835700,6.91,167.12,167.08,2.2144]
[1717071837112,2.2137,167.14,167.08,2.2144]
[1717071838226,6.91,167.12,167.08,2.2144]
[1717071841334,2.2137,167.14,167.08,62.2144]
[1717071841522,6.91,167.13,167.09,2.2143]
[1717071842031,6.91,167.13,167.08,62.2144]
[1717071842340,6.91,167.13,167.09,2.2143]
[1717071843407,6.91,167.13,167.08,98.1744]
[1717071843810,2.2137,167.14,167.08,98.1744]
[1717071844017,6.91,167.13,167.09,2.2143]
[1717071844424,6.91,167.13,167.08,98.1744]
[1717071845931,6.91,167.13,167.1,60.0]
[1717071846138,2.2133,167.17,167.1,60.0]
[1717071846430,2.2133,167.17,167.11,2.214]
[1717071846733,2.2133,167.17,167.12,95.96]
[1717071846938,6.91,167.17,167.12,98.1738]
[1717071847114,6.91,167.16,167.12,95.96]
[1717071847313,6.91,167.16,167.12,98.1739]
[1717071847535,6.91,167.17,167.12,98.1739]
[1717071848135,9.1233,167.17,167.12,98.1739]
[1717071848840,2.2133,167.17,167.11,38.174]
[1717071849031,6.91,167.16,167.11,38.174]
[1717071849436,2.2133,167.17,167.11,38.174]
[1717071849836,6.91,167.16,167.13,60.0]
[1717071850135,2.2132,167.18,167.13,60.0]
[1717071850319,6.91,167.17,167.13,60.0]
[1717071850943,2.2132,167.18,167.13,95.96]
[1717071851237,6.3779,167.2,167.15,60.0]
[1717071851427,6.3779,167.2,167.15,62.2135]
[1717071851853,2.2128,167.21,167.15,62.2135]
[1717071852313,2.2129,167.2,167.15,60.0]
[1717071852519,2.2129,167.2,167.15,62.2135]
[1717071852720,2.2129,167.2,167.15,60.0]
[1717071852938,6.91,167.19,167.15,60.0]
[1717071853454,6.2396,167.24,167.17,62.2132]
[1717071853624,6.2396,167.24,167.17,60.0]
[1717071853625,6.91,167.22,167.17,60.0]
[1717071853944,6.2396,167.24,167.15,60.0]
[1717071854122,6.2396,167.24,167.14,35.96]
[1717071854317,2.2129,167.2,167.14,38.1736]
[1717071854532,2.2129,167.2,167.15,2.2135]
[1717071855117,6.2396,167.24,167.15,2.2135]
[1717071855333,6.2396,167.24,167.14,35.96]
[1717071855334,2.2129,167.2,167.14,38.1736]
[1717071855520,6.2396,167.24,167.13,60.0]
[1717071855726,16.0066,167.23,167.12,388.7]
[1717071855943,2.2134,167.16,167.12,388.7]
[1717071856132,2.2134,167.16,167.11,35.96]
[1717071856133,2.2133,167.17,167.11,2.214]
[1717071857136,2.2134,167.16,167.11,2.214]
[1717071857347,16.0066,167.23,167.11,2.214]
[1717071857348,2.2133,167.17,167.11,2.214]
[1717071858264,2.2134,167.17,167.11,2.214]
[1717071858636,2.2134,167.17,167.11,62.214]
[1717071858833,2.2134,167.17,167.11,2.214]
[1717071859026,2.2134,167.17,167.12,2.2139]
[1717071859229,2.2132,167.18,167.12,2.2139]
[1717071859444,6.91,167.17,167.12,2.2139]
[1717071859746,2.2132,167.18,167.12,2.2139]
[1717071859977,16.0066,167.23,167.12,2.2139]
[1717071860138,2.2131,167.19,167.12,60.0]
[1717071860450,6.2396,167.24,167.14,62.2136]
[1717071860451,2.2129,167.2,167.14,62.2136]
[1717071860756,0.94942617,167.23,167.11,60.0]
[1717071860930,2.2131,167.19,167.13,98.1738]
[1717071861125,2.2132,167.18,167.12,2.2139]
[1717071861525,2.2132,167.18,167.13,2.2138]
[1717071861732,2.2132,167.18,167.12,2.2139]
[1717071862954,2.2133,167.17,167.11,2.214]
[1717071865565,2.2135,167.16,167.1,2.2142]
[1717071866029,2.2133,167.17,167.11,2.214]
[1717071868051,2.2133,167.17,167.12,2.2139]
[1717071868257,8.2656,167.17,167.11,2.214]
[1717071869465,8.2656,167.17,167.12,2.2139]
[1717071869953,6.0523,167.17,167.12,2.2139]
[1717071870159,15.8272,167.2,167.13,2.2138]
[1717071870455,15.8272,167.2,167.12,2.2139]
[1717071871164,15.8272,167.2,167.11,2.214]
[1717071871364,15.8272,167.2,167.1,2.2141]
[1717071871744,15.8272,167.2,167.11,2.214]
[1717071872137,15.8272,167.2,167.12,2.2139]
[1717071872974,6.1665,167.19,167.11,2.214]
[1717071873266,6.1665,167.19,167.12,2.2139]
[1717071873849,6.1665,167.19,167.09,102.87]
[1717071873850,6.1665,167.19,167.11,2.214]
[1717071874051,6.1665,167.19,167.09,102.87]
[1717071874052,8.8571,167.16,167.1,2.2141]
[1717071874579,8.8571,167.16,167.11,2.214]
[1717071874952,8.8571,167.16,167.1,2.2141]
[1717071875282,8.8571,167.16,167.11,2.214]
[1717071875641,2.2132,167.18,167.12,2.2139]
[1717071876164,2.2133,167.17,167.11,62.214]
[1717071876670,2.2133,167.17,167.12,2.2139]
[1717071876853,2.2133,167.17,167.11,62.214]
[1717071877059,9.1233,167.17,167.11,62.214]
[1717071877261,9.1233,167.17,167.12,2.2139]
[1717071877970,2.2133,167.17,167.12,2.2139]
[1717071878956,22.0114,167.2,167.11,62.214]
[1717071879158,22.0114,167.2,167.11,2.214]
[1717071880164,22.0114,167.2,167.1,2.2142]
[1717071880744,22.0114,167.2,167.09,102.87]
[1717071880940,22.0114,167.2,167.1,2.2141]
[1717071881166,22.0114,167.2,167.11,2.2141]
[1717071881881,22.0114,167.2,167.11,62.2141]
[1717071882770,2.2134,167.17,167.11,62.2141]
[1717071882949,2.2134,167.17,167.12,2.2139]
[1717071883652,2.2134,167.16,167.11,69.124]
[1717071884870,2.2134,167.16,167.11,60.0]
[1717071885168,2.2135,167.15,167.11,60.0]
[1717071885851,2.2137,167.14,167.11,60.0]
[1717071886077,2.2135,167.16,167.11,60.0]
[1717071886954,2.2135,167.15,167.11,60.0]
[1717071887983,2.2135,167.15,167.1,2.2142]
[1717071888354,2.2136,167.15,167.1,2.2142]
[1717071889786,2.2136,167.15,167.11,60.0]
[1717071890583,2.2136,167.15,167.1,2.2142]
[1717071891097,2.2137,167.14,167.09,105.0843]
[1717071891799,2.2136,167.15,167.1,2.2142]
[1717071892380,15.5717,167.14,167.09,98.1743]
[1717071893399,6.6577,167.13,167.09,2.2143]
[1717071893682,13.5677,167.13,167.09,2.2143]
[1717071895458,2.2137,167.14,167.1,60.0]
[1717071897088,2.2137,167.14,167.09,9.1243]
[1717071898384,2.2137,167.14,167.09,45.0843]
[1717071899093,6.5587,167.17,167.1,62.2141]
[1717071899265,6.91,167.16,167.1,69.1241]
[1717071899460,6.91,167.16,167.1,102.87]
[1717071899697,6.5587,167.17,167.12,62.2139]
[1717071899894,13.4687,167.17,167.12,62.2139]
[1717071900409,6.3163,167.21,167.13,6.91]
[1717071900569,6.37,167.17,167.12,2.2139]
[1717071900767,6.91,167.15,167.11,2.214]
[1717071902305,6.91,167.13,167.08,95.96]
[1717071902478,6.91,167.13,167.09,2.2143]
[1717071902676,6.91,167.13,167.08,95.96]
[1717071902898,6.91,167.13,167.09,2.2142]
[1717071903191,6.91,167.13,167.1,2.2142]
[1717071903373,8.5281,167.15,167.1,2.2142]
[1717071903688,6.3747,167.2,167.13,60.0]
[1717071903894,2.2133,167.17,167.12,2.2139]
[1717071904075,15.498,167.17,167.12,2.2139]
[1717071904409,9.1234,167.16,167.11,98.174]
[1717071904572,9.1234,167.16,167.12,2.2139]
[1717071904766,9.1234,167.16,167.11,98.174]
[1717071905100,9.1234,167.16,167.12,2.2139]
[1717071905390,6.91,167.16,167.13,60.0]
[1717071905584,2.2131,167.18,167.14,2.2136]
[1717071905891,2.2131,167.18,167.13,35.96]
[1717071906070,2.2131,167.18,167.13,2.2138]
[1717071906276,2.2133,167.17,167.13,2.2138]
[1717071906479,2.2133,167.17,167.12,2.2139]
[1717071907170,2.2134,167.16,167.11,98.174]
[1717071908096,2.2134,167.16,167.12,2.2139]
[1717071909295,2.2134,167.16,167.11,98.174]
[1717071909496,2.2134,167.16,167.12,2.2139]
[1717071910200,8.6965,167.16,167.11,2.214]
[1717071910398,6.91,167.15,167.11,2.214]
[1717071911307,15.5419,167.15,167.11,2.214]
[1717071911613,15.5419,167.15,167.09,35.96]
[1717071911614,6.91,167.14,167.1,2.2141]
[1717071912109,13.3284,167.15,167.11,2.214]
[1717071913297,13.3284,167.15,167.09,95.96]
[1717071913495,13.3284,167.15,167.11,2.214]
[1717071913797,8.632,167.15,167.1,2.2141]
[1717071914103,6.91,167.14,167.1,2.2141]
[1717071914403,6.91,167.14,167.11,2.2141]
[1717071916096,6.91,167.14,167.1,2.2141]
[1717071916302,6.91,167.14,167.08,11.3389]
[1717071916519,6.91,167.14,167.1,2.2141]
[1717071916712,6.91,167.14,167.11,2.214]
[1717071918080,6.91,167.14,167.12,2.2139]
[1717071918288,13.3284,167.15,167.12,2.2139]
[1717071919796,6.4184,167.15,167.12,2.2139]
[1717071919998,2.2138,167.14,167.09,38.1743]
[1717071920198,6.91,167.13,167.07,102.87]
[1717071920501,8.632,167.15,167.1,2.2141]
[1717071921815,2.214,167.12,167.07,2.2145]
[1717071922102,12.9578,167.1,167.03,35.96]
[1717071922305,2.2144,167.09,167.04,2.215]
[1717071922484,6.91,167.08,167.04,2.215]
[1717071922683,6.22852597,167.08,167.04,2.215]
[1717071923092,8.4555,167.09,167.04,2.215]
[1717071923293,2.2145,167.08,167.03,2.2151]
[1717071923695,6.0608,167.06,167.02,2.2152]
[1717071923895,12.9708,167.06,167.02,2.2152]
[1717071924892,12.9708,167.06,167.03,2.2151]
[1717071925097,12.9708,167.06,167.02,2.2152]
[1717071925593,6.0608,167.06,167.02,2.2152]
[1717071926095,6.91,167.04,166.98,60.0]
[1717071926320,6.91,167.04,167.01,2.2154]
[1717071928315,2.2148,167.06,167.01,2.2154]
[1717071928316,6.096,167.05,167.01,2.2154]
[1717071928517,2.2142,167.1,167.02,60.0]
[1717071928718,9.1244,167.09,167.02,60.0]
[1717071928895,15.8069,167.13,167.01,11.0769]
[1717071928896,8.3105,167.08,167.03,2.215]
[1717071929216,6.91,167.06,166.99,4.4313]
[1717071929416,13.4699,167.05,167.01,2.2153]
[1717071929616,13.4699,167.05,167.02,2.2152]
[1717071929933,2.2145,167.08,167.03,60.0]
[1717071930301,6.5599,167.1,167.07,2.2145]
[1717071930626,13.4699,167.1,167.07,2.2145]
[1717071930811,6.5599,167.1,167.06,2.2147]
[1717071931013,6.91,167.09,167.06,2.2147]
[1717071931905,2.2141,167.11,167.06,62.2147]
[1717071932111,6.91,167.1,167.06,2.2147]
[1717071932405,6.91,167.1,167.05,4.4297]
[1717071932708,8.7743,167.09,167.02,35.96]
[1717071932911,6.91,167.08,167.04,2.2149]
[1717071933113,6.5599,167.09,167.02,35.96]
[1717071933309,6.91,167.08,167.04,2.2149]
[1717071934514,6.2946,167.08,167.03,2.2151]
[1717071934818,6.91,167.06,167.03,2.2151]
[1717071935216,8.5091,167.08,167.03,2.2151]
[1717071935400,6.0749,167.07,167.03,2.2151]
[1717071935817,6.0749,167.07,167.04,2.2149]
[1717071936322,6.0749,167.07,167.03,2.2151]
[1717071936826,6.3899,167.07,167.03,2.2151]
[1717071937417,6.91,167.05,167.0,4.431]
[1717071939010,6.91,167.05,167.03,2.2151]
[1717071939209,6.606,167.09,167.03,60.0]
[1717071939410,6.91,167.08,167.05,2.2148]
[1717071939611,13.516,167.08,167.05,2.2148]
[1717071939818,2.2143,167.1,167.06,2.2147]
[1717071939819,6.606,167.1,167.06,2.2147]
[1717071940021,6.91,167.09,167.06,2.2147]